[Event "Titled Tuesday Blitz July 11 Early 2023"]
[White "Goswami, Vedant"]
[Black "Vlassov, Nikolai"]
[WhiteFideId "5003725"]
[BlackFideId "4103360"]
[WhiteElo "2417"]
[BlackElo "2593"]
[Result "0-1"]
[Round "10"]
[TimeControl "180+2"]
[Date "2023.07.11"]
[WhiteClock "0:00:08"]
[BlackClock "0:00:07"]
[Board "51"]

1. c3 {[%clk 0:03:00]}  f5 {[%clk 0:02:54]} 2. d3 {[%clk 0:02:58]}  Nf6 {[%clk 0:02:54]} 3. Nd2 {[%clk 0:02:57]}  e5 {[%clk 0:02:53]} 4. e4 {[%clk 0:02:56]}  d5 {[%clk 0:02:52]} 5. Ngf3 {[%clk 0:02:54]}  Nc6 {[%clk 0:02:51]} 6. b4 {[%clk 0:02:45]}  dxe4 {[%clk 0:02:49]} 7. dxe4 {[%clk 0:02:44]}  fxe4 {[%clk 0:02:49]} 8. b5 {[%clk 0:02:35]}  exf3 {[%clk 0:02:29]} 9. bxc6 {[%clk 0:02:34]}  fxg2 {[%clk 0:02:26]} 10. Bxg2 {[%clk 0:02:31]}  b6 {[%clk 0:02:26]} 11. Qe2 {[%clk 0:02:26]}  Bd6 {[%clk 0:02:20]} 12. Nc4 {[%clk 0:02:13]}  O-O {[%clk 0:02:12]} 13. Nxd6 {[%clk 0:02:11]}  Qxd6 {[%clk 0:02:12]} 14. O-O {[%clk 0:02:10]}  Bg4 {[%clk 0:02:05]} 15. Qc4+ {[%clk 0:02:00]}  Kh8 {[%clk 0:01:52]} 16. a4 {[%clk 0:01:55]}  Rfd8 {[%clk 0:01:33]} 17. Be3 {[%clk 0:01:45]}  Qd3 {[%clk 0:01:13]} 18. Qb5 {[%clk 0:01:27]}  Be2 {[%clk 0:00:58]} 19. Rfe1 {[%clk 0:01:23]}  Qxb5 {[%clk 0:00:56]} 20. axb5 {[%clk 0:01:22]}  Bxb5 {[%clk 0:00:57]} 21. f4 {[%clk 0:01:14]}  exf4 {[%clk 0:00:51]} 22. Bxf4 {[%clk 0:01:14]}  Nd5 {[%clk 0:00:51]} 23. Be5 {[%clk 0:01:04]}  Bxc6 {[%clk 0:00:48]} 24. c4 {[%clk 0:00:46]}  Nb4 {[%clk 0:00:45]} 25. Bxc7 {[%clk 0:00:44]}  Rdc8 {[%clk 0:00:38]} 26. Bd6 {[%clk 0:00:37]}  Nc2 {[%clk 0:00:35]} 27. Re7 {[%clk 0:00:34]}  Bxg2 {[%clk 0:00:13]} 28. Rc1 {[%clk 0:00:22]}  Rxc4 {[%clk 0:00:10]} 29. Be5 {[%clk 0:00:16]}  Rg8 {[%clk 0:00:10]} 30. Rxa7 {[%clk 0:00:12]}  Be4 {[%clk 0:00:08]} 31. Rca1 {[%clk 0:00:08]}  Nxa1 {[%clk 0:00:07]} 0-1


[Site "https://www.chess.com"]

[Event "Titled Tuesday Blitz July 11 Early 2023"]
[White "Preotu, Razvan"]
[Black "Pham, Le Thao Nguyen"]
[WhiteFideId "2613280"]
[BlackFideId "12401226"]
[WhiteElo "2738"]
[BlackElo "2539"]
[Result "1/2-1/2"]
[Round "10"]
[TimeControl "180+2"]
[Date "2023.07.11"]
[WhiteClock "0:00:06"]
[BlackClock "0:00:14"]
[Board "54"]

1. e4 {[%clk 0:03:00]}  c6 {[%clk 0:02:53]} 2. Nc3 {[%clk 0:02:58]}  d5 {[%clk 0:02:52]} 3. Nf3 {[%clk 0:02:58]}  dxe4 {[%clk 0:02:51]} 4. Nxe4 {[%clk 0:02:59]}  Nf6 {[%clk 0:02:52]} 5. Qe2 {[%clk 0:03:00]}  Nxe4 {[%clk 0:02:51]} 6. Qxe4 {[%clk 0:03:01]}  Qa5 {[%clk 0:02:51]} 7. b4 {[%clk 0:03:00]}  Qf5 {[%clk 0:02:48]} 8. Qe3 {[%clk 0:03:01]}  Qe6 {[%clk 0:02:43]} 9. Be2 {[%clk 0:03:01]}  Qxe3 {[%clk 0:02:42]} 10. fxe3 {[%clk 0:03:02]}  Nd7 {[%clk 0:02:39]} 11. d4 {[%clk 0:02:48]}  e5 {[%clk 0:02:34]} 12. a3 {[%clk 0:02:44]}  Bd6 {[%clk 0:02:18]} 13. c4 {[%clk 0:02:42]}  O-O {[%clk 0:02:17]} 14. Bb2 {[%clk 0:02:14]}  Re8 {[%clk 0:02:16]} 15. Kf2 {[%clk 0:01:25]}  a5 {[%clk 0:01:59]} 16. c5 {[%clk 0:01:14]}  Bc7 {[%clk 0:01:54]} 17. Bc4 {[%clk 0:01:07]}  exd4 {[%clk 0:01:50]} 18. exd4 {[%clk 0:01:08]}  Nf6 {[%clk 0:01:47]} 19. Rhe1 {[%clk 0:00:45]}  Bf5 {[%clk 0:01:42]} 20. Ne5 {[%clk 0:00:43]}  Be6 {[%clk 0:01:35]} 21. Bxe6 {[%clk 0:00:40]}  Rxe6 {[%clk 0:01:34]} 22. Nc4 {[%clk 0:00:41]}  axb4 {[%clk 0:01:28]} 23. Rxe6 {[%clk 0:00:37]}  fxe6 {[%clk 0:01:27]} 24. axb4 {[%clk 0:00:38]}  Rxa1 {[%clk 0:01:27]} 25. Bxa1 {[%clk 0:00:39]}  Nd5 {[%clk 0:01:27]} 26. Kf3 {[%clk 0:00:17]}  Nxb4 {[%clk 0:01:26]} 27. Ke4 {[%clk 0:00:17]}  Nd5 {[%clk 0:01:23]} 28. h3 {[%clk 0:00:16]}  Kf7 {[%clk 0:01:23]} 29. Bb2 {[%clk 0:00:17]}  Kf6 {[%clk 0:01:12]} 30. Bc1 {[%clk 0:00:17]}  h5 {[%clk 0:01:08]} 31. Bd2 {[%clk 0:00:17]}  g5 {[%clk 0:01:03]} 32. Ba5 {[%clk 0:00:17]}  Bb8 {[%clk 0:00:58]} 33. Bd8+ {[%clk 0:00:17]}  Kg6 {[%clk 0:00:56]} 34. Na5 {[%clk 0:00:15]}  Nf4 {[%clk 0:00:54]} 35. Kf3 {[%clk 0:00:13]}  Kf5 {[%clk 0:00:48]} 36. Nxb7 {[%clk 0:00:07]}  g4+ {[%clk 0:00:46]} 37. hxg4+ {[%clk 0:00:08]}  hxg4+ {[%clk 0:00:47]} 38. Kf2 {[%clk 0:00:09]}  Nd3+ {[%clk 0:00:42]} 39. Kf1 {[%clk 0:00:09]}  Ke4 {[%clk 0:00:40]} 40. Na5 {[%clk 0:00:07]}  Kd5 {[%clk 0:00:40]} 41. Bf6 {[%clk 0:00:05]}  Nb4 {[%clk 0:00:31]} 42. Ke2 {[%clk 0:00:04]}  Bf4 {[%clk 0:00:25]} 43. Nb3 {[%clk 0:00:04]}  Kc4 {[%clk 0:00:22]} 44. Nd2+ {[%clk 0:00:03]}  Bxd2 {[%clk 0:00:22]} 45. Kxd2 {[%clk 0:00:04]}  Nd5 {[%clk 0:00:21]} 46. Be5 {[%clk 0:00:04]}  Nb4 {[%clk 0:00:14]} 47. Ke3 {[%clk 0:00:04]}  Nc2+ {[%clk 0:00:15]} 48. Ke4 {[%clk 0:00:04]}  Ne1 {[%clk 0:00:14]} 49. g3 {[%clk 0:00:02]}  Nf3 {[%clk 0:00:14]} 50. Kf4 {[%clk 0:00:02]}  Nxd4 {[%clk 0:00:13]} 51. Kxg4 {[%clk 0:00:02]}  Kxc5 {[%clk 0:00:13]} 52. Kf4 {[%clk 0:00:02]}  Kd5 {[%clk 0:00:13]} 53. g4 {[%clk 0:00:02]}  c5 {[%clk 0:00:13]} 54. g5 {[%clk 0:00:03]}  Nf5 {[%clk 0:00:12]} 55. g6 {[%clk 0:00:03]}  c4 {[%clk 0:00:11]} 56. g7 {[%clk 0:00:03]}  Nxg7 {[%clk 0:00:11]} 57. Bxg7 {[%clk 0:00:04]}  Kc5 {[%clk 0:00:11]} 58. Bc3 {[%clk 0:00:05]}  Kd5 {[%clk 0:00:11]} 59. Bb2 {[%clk 0:00:04]}  e5+ {[%clk 0:00:11]} 60. Bxe5 {[%clk 0:00:04]}  Kc5 {[%clk 0:00:11]} 61. Bc3 {[%clk 0:00:05]}  Kb5 {[%clk 0:00:11]} 62. Ke4 {[%clk 0:00:06]}  Ka4 {[%clk 0:00:12]} 63. Kd4 {[%clk 0:00:07]}  Kb3 {[%clk 0:00:13]} 64. Ba5 {[%clk 0:00:07]}  c3 {[%clk 0:00:14]} 65. Bxc3 {[%clk 0:00:06]} 1/2-1/2


[Site "https://www.chess.com"]

[Event "Titled Tuesday Blitz July 11 Early 2023"]
[White "Borgaonkar Akshay"]
[Black "Brunner, Nicolas"]
[WhiteFideId "25639110"]
[BlackFideId "620246"]
[WhiteElo "2601"]
[BlackElo "2499"]
[Result "1-0"]
[Round "10"]
[TimeControl "180+2"]
[Date "2023.07.11"]
[WhiteClock "0:01:28"]
[BlackClock "0:01:03"]
[Board "69"]

1. d4 {[%clk 0:03:00]}  Nf6 {[%clk 0:02:59]} 2. Bf4 {[%clk 0:03:01]}  e6 {[%clk 0:02:58]} 3. Nf3 {[%clk 0:02:58]}  b6 {[%clk 0:02:58]} 4. e3 {[%clk 0:02:58]}  Bb7 {[%clk 0:02:58]} 5. Bd3 {[%clk 0:02:59]}  c5 {[%clk 0:02:58]} 6. Nc3 {[%clk 0:02:55]}  Be7 {[%clk 0:02:52]} 7. Qe2 {[%clk 0:02:50]}  d6 {[%clk 0:02:47]} 8. O-O-O {[%clk 0:02:50]}  O-O {[%clk 0:02:44]} 9. h4 {[%clk 0:02:46]}  Nc6 {[%clk 0:02:39]} 10. Ne4 {[%clk 0:02:21]}  Nb4 {[%clk 0:02:34]} 11. Nxf6+ {[%clk 0:02:21]}  Bxf6 {[%clk 0:02:34]} 12. Bxh7+ {[%clk 0:02:12]}  Kxh7 {[%clk 0:02:30]} 13. Ng5+ {[%clk 0:02:12]}  Kg8 {[%clk 0:01:36]} 14. Qh5 {[%clk 0:02:11]}  Re8 {[%clk 0:01:35]} 15. Qxf7+ {[%clk 0:02:10]}  Kh8 {[%clk 0:01:36]} 16. dxc5 {[%clk 0:01:46]}  Bd5 {[%clk 0:01:25]} 17. Qh5+ {[%clk 0:01:40]}  Kg8 {[%clk 0:01:24]} 18. Bxd6 {[%clk 0:01:39]}  Bxb2+ {[%clk 0:01:13]} 19. Kxb2 {[%clk 0:01:35]}  Qf6+ {[%clk 0:01:12]} 20. c3 {[%clk 0:01:33]}  Qh6 {[%clk 0:01:06]} 21. Qf7+ {[%clk 0:01:29]}  Kh8 {[%clk 0:01:06]} 22. cxb4 {[%clk 0:01:28]}  bxc5 {[%clk 0:01:06]} 23. Qxe8+ {[%clk 0:01:27]}  Rxe8 {[%clk 0:01:05]} 24. Nf7+ {[%clk 0:01:28]}  Kh7 {[%clk 0:01:03]} 25. Nxh6 {[%clk 0:01:28]} 1-0


[Site "https://www.chess.com"]

[Event "Titled Tuesday Blitz July 11 Early 2023"]
[White "Ocelak, Jakub"]
[Black "Al-Tarboush, Ward"]
[WhiteFideId "23707933"]
[BlackFideId "7601450"]
[WhiteElo "2486"]
[BlackElo "2594"]
[Result "1-0"]
[Round "10"]
[TimeControl "180+2"]
[Date "2023.07.11"]
[WhiteClock "0:00:09"]
[BlackClock "0:00:40"]
[Board "70"]

1. d4 {[%clk 0:03:00]}  Nf6 {[%clk 0:02:59]} 2. Nc3 {[%clk 0:02:59]}  d5 {[%clk 0:02:59]} 3. Bf4 {[%clk 0:02:59]}  a6 {[%clk 0:02:58]} 4. e3 {[%clk 0:02:59]}  Bf5 {[%clk 0:02:57]} 5. Bd3 {[%clk 0:02:59]}  Bxd3 {[%clk 0:02:57]} 6. cxd3 {[%clk 0:03:00]}  e6 {[%clk 0:02:57]} 7. Qb3 {[%clk 0:03:00]}  b5 {[%clk 0:02:57]} 8. a4 {[%clk 0:02:54]}  b4 {[%clk 0:02:57]} 9. Nce2 {[%clk 0:02:53]}  a5 {[%clk 0:02:56]} 10. Nf3 {[%clk 0:02:51]}  Bd6 {[%clk 0:02:56]} 11. Ne5 {[%clk 0:02:50]}  O-O {[%clk 0:02:56]} 12. O-O {[%clk 0:02:42]}  Nh5 {[%clk 0:02:56]} 13. Rfc1 {[%clk 0:02:37]}  Nxf4 {[%clk 0:02:55]} 14. Nxf4 {[%clk 0:02:35]}  Nd7 {[%clk 0:02:55]} 15. Nxd7 {[%clk 0:02:07]}  Qxd7 {[%clk 0:02:54]} 16. Qc2 {[%clk 0:02:01]}  Bxf4 {[%clk 0:02:54]} 17. exf4 {[%clk 0:02:02]}  Ra7 {[%clk 0:02:54]} 18. Qc6 {[%clk 0:02:01]}  Qxc6 {[%clk 0:02:53]} 19. Rxc6 {[%clk 0:02:01]}  Rb8 {[%clk 0:02:53]} 20. Rac1 {[%clk 0:01:55]}  Rbb7 {[%clk 0:02:53]} 21. Rd6 {[%clk 0:01:39]}  Kf8 {[%clk 0:02:53]} 22. Rd8+ {[%clk 0:01:39]}  Ke7 {[%clk 0:02:54]} 23. Rh8 {[%clk 0:01:39]}  h6 {[%clk 0:02:53]} 24. b3 {[%clk 0:01:38]}  Rb6 {[%clk 0:02:48]} 25. Rg8 {[%clk 0:01:33]}  g6 {[%clk 0:02:48]} 26. Rc5 {[%clk 0:01:29]}  Rd6 {[%clk 0:02:47]} 27. Rc8 {[%clk 0:01:24]}  Kd7 {[%clk 0:02:47]} 28. Rf8 {[%clk 0:01:21]}  Ke7 {[%clk 0:02:47]} 29. Rb8 {[%clk 0:01:21]}  g5 {[%clk 0:02:27]} 30. fxg5 {[%clk 0:01:11]}  hxg5 {[%clk 0:02:28]} 31. f3 {[%clk 0:01:11]}  f5 {[%clk 0:02:23]} 32. Rbb5 {[%clk 0:01:09]}  Rda6 {[%clk 0:02:23]} 33. Rb8 {[%clk 0:01:09]}  f4 {[%clk 0:02:09]} 34. Rg8 {[%clk 0:01:07]}  Kf6 {[%clk 0:02:06]} 35. Rc8 {[%clk 0:01:05]}  e5 {[%clk 0:02:02]} 36. Rf8+ {[%clk 0:00:56]}  Ke7 {[%clk 0:02:00]} 37. Rf5 {[%clk 0:00:55]}  exd4 {[%clk 0:01:58]} 38. Rfxd5 {[%clk 0:00:50]}  Re6 {[%clk 0:01:58]} 39. Kf2 {[%clk 0:00:41]}  c6 {[%clk 0:01:52]} 40. Rxd4 {[%clk 0:00:39]}  Kf7 {[%clk 0:01:53]} 41. Rxg5 {[%clk 0:00:38]}  Kf6 {[%clk 0:01:50]} 42. Rc5 {[%clk 0:00:36]}  Rae7 {[%clk 0:01:39]} 43. Rxf4+ {[%clk 0:00:35]}  Kg6 {[%clk 0:01:39]} 44. Re4 {[%clk 0:00:35]}  Rxe4 {[%clk 0:01:36]} 45. fxe4 {[%clk 0:00:35]}  Rf7+ {[%clk 0:01:36]} 46. Ke2 {[%clk 0:00:34]}  Kf6 {[%clk 0:01:29]} 47. Rxa5 {[%clk 0:00:32]}  Ke6 {[%clk 0:01:29]} 48. Rf5 {[%clk 0:00:30]}  Rh7 {[%clk 0:01:28]} 49. h3 {[%clk 0:00:30]}  Kd6 {[%clk 0:01:28]} 50. a5 {[%clk 0:00:28]}  c5 {[%clk 0:01:26]} 51. a6 {[%clk 0:00:18]}  Kc6 {[%clk 0:01:25]} 52. Ke3 {[%clk 0:00:17]}  Kb6 {[%clk 0:01:25]} 53. Rf6+ {[%clk 0:00:17]}  Kb5 {[%clk 0:01:24]} 54. e5 {[%clk 0:00:17]}  Rd7 {[%clk 0:01:19]} 55. e6 {[%clk 0:00:17]}  Re7 {[%clk 0:01:19]} 56. Ke4 {[%clk 0:00:16]}  Kxa6 {[%clk 0:01:19]} 57. Ke5 {[%clk 0:00:17]}  Kb5 {[%clk 0:01:18]} 58. Kd6 {[%clk 0:00:17]}  Ra7 {[%clk 0:01:18]} 59. Rf7 {[%clk 0:00:14]}  Ra6+ {[%clk 0:01:18]} 60. Kd5 {[%clk 0:00:15]}  Ra2 {[%clk 0:01:06]} 61. Rb7+ {[%clk 0:00:14]}  Ka6 {[%clk 0:01:05]} 62. Rb8 {[%clk 0:00:12]}  Re2 {[%clk 0:01:04]} 63. Kd6 {[%clk 0:00:11]}  Ka7 {[%clk 0:01:01]} 64. Rh8 {[%clk 0:00:09]}  Re3 {[%clk 0:01:00]} 65. e7 {[%clk 0:00:10]}  Rxd3+ {[%clk 0:01:01]} 66. Kxc5 {[%clk 0:00:09]}  Rc3+ {[%clk 0:00:40]} 67. Kxb4 {[%clk 0:00:09]} 1-0


[Site "https://www.chess.com"]

[Event "Titled Tuesday Blitz July 11 Early 2023"]
[White "Nunez V, Gustavo Eduardo"]
[Black "Lana Rodriguez, David"]
[WhiteFideId "4403690"]
[BlackFideId "2270803"]
[WhiteElo "2458"]
[BlackElo "2585"]
[Result "1/2-1/2"]
[Round "10"]
[TimeControl "180+2"]
[Date "2023.07.11"]
[WhiteClock "0:00:04"]
[BlackClock "0:00:27"]
[Board "71"]

1. e4 {[%clk 0:03:00]}  e6 {[%clk 0:02:53]} 2. d3 {[%clk 0:02:58]}  d5 {[%clk 0:02:52]} 3. Nd2 {[%clk 0:02:56]}  Nf6 {[%clk 0:02:51]} 4. g3 {[%clk 0:02:52]}  Nc6 {[%clk 0:02:51]} 5. Bg2 {[%clk 0:02:49]}  dxe4 {[%clk 0:02:52]} 6. dxe4 {[%clk 0:02:46]}  Bc5 {[%clk 0:02:52]} 7. h3 {[%clk 0:02:43]}  e5 {[%clk 0:02:43]} 8. Ngf3 {[%clk 0:02:39]}  Be6 {[%clk 0:02:43]} 9. O-O {[%clk 0:02:36]}  O-O {[%clk 0:02:41]} 10. c3 {[%clk 0:02:37]}  a5 {[%clk 0:02:41]} 11. a4 {[%clk 0:02:29]}  Qe7 {[%clk 0:02:40]} 12. Qc2 {[%clk 0:02:21]}  Rfd8 {[%clk 0:02:38]} 13. Re1 {[%clk 0:02:21]}  Rd7 {[%clk 0:02:36]} 14. Nb3 {[%clk 0:02:21]}  Bb6 {[%clk 0:02:34]} 15. Bg5 {[%clk 0:02:17]}  Rad8 {[%clk 0:02:32]} 16. Rad1 {[%clk 0:02:17]}  h6 {[%clk 0:02:31]} 17. Bxf6 {[%clk 0:02:16]}  Qxf6 {[%clk 0:02:32]} 18. Rxd7 {[%clk 0:02:16]}  Rxd7 {[%clk 0:02:33]} 19. Rd1 {[%clk 0:02:14]}  Rd6 {[%clk 0:02:22]} 20. Rxd6 {[%clk 0:02:10]}  cxd6 {[%clk 0:02:23]} 21. Nbd2 {[%clk 0:02:01]}  Bd7 {[%clk 0:02:18]} 22. Qd3 {[%clk 0:01:59]}  Ne7 {[%clk 0:02:11]} 23. b3 {[%clk 0:01:52]}  Ng6 {[%clk 0:01:53]} 24. Nc4 {[%clk 0:01:51]}  Bc5 {[%clk 0:01:54]} 25. Nxa5 {[%clk 0:01:47]}  b6 {[%clk 0:01:54]} 26. Nc4 {[%clk 0:01:45]}  b5 {[%clk 0:01:53]} 27. axb5 {[%clk 0:01:34]}  Bxb5 {[%clk 0:01:54]} 28. b4 {[%clk 0:01:34]}  Ba7 {[%clk 0:01:42]} 29. Qd5 {[%clk 0:01:32]}  Bxc4 {[%clk 0:01:39]} 30. Qxc4 {[%clk 0:01:33]}  Kh7 {[%clk 0:01:37]} 31. h4 {[%clk 0:01:15]}  Qe7 {[%clk 0:01:36]} 32. h5 {[%clk 0:01:13]}  Nf8 {[%clk 0:01:36]} 33. Nh4 {[%clk 0:01:12]}  Ne6 {[%clk 0:01:33]} 34. Nf5 {[%clk 0:01:10]}  Qd7 {[%clk 0:01:33]} 35. Qa6 {[%clk 0:01:04]}  Bb8 {[%clk 0:01:23]} 36. Bf1 {[%clk 0:00:57]}  Ng5 {[%clk 0:01:22]} 37. Qc4 {[%clk 0:00:22]}  d5 {[%clk 0:01:21]} 38. Qxd5 {[%clk 0:00:21]}  Qc7 {[%clk 0:01:19]} 39. c4 {[%clk 0:00:18]}  Qb6 {[%clk 0:01:16]} 40. b5 {[%clk 0:00:17]}  Ba7 {[%clk 0:01:16]} 41. c5 {[%clk 0:00:11]}  Qxc5 {[%clk 0:01:15]} 42. Qxc5 {[%clk 0:00:11]}  Bxc5 {[%clk 0:01:16]} 43. Bg2 {[%clk 0:00:09]}  g6 {[%clk 0:01:12]} 44. hxg6+ {[%clk 0:00:09]}  fxg6 {[%clk 0:01:13]} 45. Nh4 {[%clk 0:00:08]}  Ne6 {[%clk 0:01:13]} 46. Nf3 {[%clk 0:00:08]}  Bd6 {[%clk 0:01:12]} 47. Nd2 {[%clk 0:00:08]}  Nd4 {[%clk 0:01:09]} 48. Bf1 {[%clk 0:00:08]}  Bb8 {[%clk 0:01:08]} 49. Kg2 {[%clk 0:00:08]}  Kg7 {[%clk 0:01:08]} 50. Bc4 {[%clk 0:00:06]}  Kf6 {[%clk 0:01:09]} 51. f3 {[%clk 0:00:05]}  Nc2 {[%clk 0:01:08]} 52. Kf2 {[%clk 0:00:04]}  Ba7+ {[%clk 0:01:09]} 53. Ke2 {[%clk 0:00:04]}  Nd4+ {[%clk 0:01:09]} 54. Kd3 {[%clk 0:00:04]}  Bb6 {[%clk 0:01:10]} 55. Nb3 {[%clk 0:00:04]}  Nxf3 {[%clk 0:01:10]} 56. Bd5 {[%clk 0:00:04]}  h5 {[%clk 0:01:08]} 57. Nc1 {[%clk 0:00:03]}  g5 {[%clk 0:01:08]} 58. Ne2 {[%clk 0:00:03]}  h4 {[%clk 0:01:09]} 59. gxh4 {[%clk 0:00:03]}  gxh4 {[%clk 0:01:10]} 60. Bc6 {[%clk 0:00:02]}  Kg5 {[%clk 0:01:09]} 61. Bd7 {[%clk 0:00:03]}  Ne1+ {[%clk 0:01:08]} 62. Kd2 {[%clk 0:00:03]}  Ng2 {[%clk 0:01:07]} 63. Bh3 {[%clk 0:00:02]}  Ne3 {[%clk 0:01:06]} 64. Kd3 {[%clk 0:00:01]}  Ng4 {[%clk 0:01:04]} 65. Kc4 {[%clk 0:00:02]}  Ne3+ {[%clk 0:01:02]} 66. Kd3 {[%clk 0:00:02]}  Kf6 {[%clk 0:01:01]} 67. Ng1 {[%clk 0:00:01]}  Kg5 {[%clk 0:01:00]} 68. Nf3+ {[%clk 0:00:02]}  Kf4 {[%clk 0:01:01]} 69. Nxh4 {[%clk 0:00:03]}  Kg3 {[%clk 0:01:01]} 70. Ng6 {[%clk 0:00:04]}  Kxh3 {[%clk 0:00:58]} 71. Nxe5 {[%clk 0:00:04]}  Ng2 {[%clk 0:00:55]} 72. Nd7 {[%clk 0:00:05]}  Bc7 {[%clk 0:00:53]} 73. Kc4 {[%clk 0:00:05]}  Ne3+ {[%clk 0:00:51]} 74. Kc5 {[%clk 0:00:05]}  Kg4 {[%clk 0:00:51]} 75. Kc6 {[%clk 0:00:06]}  Bg3 {[%clk 0:00:50]} 76. e5 {[%clk 0:00:06]}  Nc4 {[%clk 0:00:51]} 77. Kc5 {[%clk 0:00:06]}  Na5 {[%clk 0:00:33]} 78. Kb4 {[%clk 0:00:05]}  Nb7 {[%clk 0:00:33]} 79. Kc4 {[%clk 0:00:05]}  Kf5 {[%clk 0:00:33]} 80. Kd5 {[%clk 0:00:06]}  Bh4 {[%clk 0:00:33]} 81. Nb6 {[%clk 0:00:04]}  Bd8 {[%clk 0:00:33]} 82. Nc4 {[%clk 0:00:04]}  Bc7 {[%clk 0:00:31]} 83. Nd6+ {[%clk 0:00:04]}  Nxd6 {[%clk 0:00:26]} 84. exd6 {[%clk 0:00:05]}  Bd8 {[%clk 0:00:26]} 85. Kc6 {[%clk 0:00:05]}  Ke6 {[%clk 0:00:27]} 86. b6 {[%clk 0:00:03]}  Bxb6 {[%clk 0:00:27]} 87. Kxb6 {[%clk 0:00:04]}  Kxd6 {[%clk 0:00:27]} 1/2-1/2


[Site "https://www.chess.com"]

[Event "Titled Tuesday Blitz July 11 Early 2023"]
[White "Kumala, Aleksander"]
[Black "Andreev, Konstantin"]
[WhiteFideId "1141880"]
[BlackFideId "24239305"]
[WhiteElo "2553"]
[BlackElo "2581"]
[Result "1-0"]
[Round "10"]
[TimeControl "180+2"]
[Date "2023.07.11"]
[WhiteClock "0:00:46"]
[BlackClock "0:00:00"]
[Board "73"]

1. d4 {[%clk 0:03:00]}  Nf6 {[%clk 0:02:59]} 2. Bg5 {[%clk 0:03:01]}  e6 {[%clk 0:02:59]} 3. Nd2 {[%clk 0:03:00]}  h6 {[%clk 0:02:58]} 4. Bh4 {[%clk 0:03:00]}  d5 {[%clk 0:02:57]} 5. e3 {[%clk 0:03:00]}  g5 {[%clk 0:02:54]} 6. Bg3 {[%clk 0:03:00]}  Bg7 {[%clk 0:02:54]} 7. Bd3 {[%clk 0:03:00]}  c5 {[%clk 0:02:53]} 8. c3 {[%clk 0:03:00]}  O-O {[%clk 0:02:51]} 9. h4 {[%clk 0:03:00]}  Nc6 {[%clk 0:02:41]} 10. hxg5 {[%clk 0:03:00]}  hxg5 {[%clk 0:02:40]} 11. Ngf3 {[%clk 0:02:42]}  Ne4 {[%clk 0:02:10]} 12. Bxe4 {[%clk 0:02:23]}  dxe4 {[%clk 0:01:12]} 13. Nxe4 {[%clk 0:02:21]}  g4 {[%clk 0:01:08]} 14. Ne5 {[%clk 0:02:04]}  Nxe5 {[%clk 0:01:02]} 15. Bxe5 {[%clk 0:02:00]}  f5 {[%clk 0:00:51]} 16. Nxc5 {[%clk 0:01:49]}  b6 {[%clk 0:00:49]} 17. Nd3 {[%clk 0:01:46]}  Bb7 {[%clk 0:00:49]} 18. Nf4 {[%clk 0:01:32]}  Qd7 {[%clk 0:00:37]} 19. Qb3 {[%clk 0:01:23]}  Rfe8 {[%clk 0:00:33]} 20. O-O-O {[%clk 0:01:17]}  Rac8 {[%clk 0:00:28]} 21. Rh5 {[%clk 0:01:16]}  Kf7 {[%clk 0:00:20]} 22. Rh7 {[%clk 0:01:01]}  Rg8 {[%clk 0:00:18]} 23. Nh5 {[%clk 0:00:59]}  Bd5 {[%clk 0:00:11]} 24. Qa3 {[%clk 0:00:52]}  Kg6 {[%clk 0:00:05]} 25. Rxg7+ {[%clk 0:00:52]}  Rxg7 {[%clk 0:00:05]} 26. Nxg7 {[%clk 0:00:52]}  a5 {[%clk 0:00:02]} 27. Rh1 {[%clk 0:00:48]}  Bxg2 {[%clk 0:00:00]} 28. Rg1 {[%clk 0:00:46]} 1-0


[Site "https://www.chess.com"]

[Event "Titled Tuesday Blitz July 11 Early 2023"]
[White "Gontcharov, Vladislav"]
[Black "Khromkin, Andrey"]
[WhiteFideId "4123492"]
[BlackFideId "4154126"]
[WhiteElo "2581"]
[BlackElo "2439"]
[Result "1-0"]
[Round "10"]
[TimeControl "180+2"]
[Date "2023.07.11"]
[WhiteClock "0:01:01"]
[BlackClock "0:00:15"]
[Board "74"]

1. d4 {[%clk 0:03:00]}  d5 {[%clk 0:02:59]} 2. Nf3 {[%clk 0:03:00]}  a5 {[%clk 0:02:59]} 3. c4 {[%clk 0:02:59]}  dxc4 {[%clk 0:02:59]} 4. Qa4+ {[%clk 0:02:55]}  Nc6 {[%clk 0:02:53]} 5. Qxc4 {[%clk 0:02:54]}  Be6 {[%clk 0:02:52]} 6. Qa4 {[%clk 0:02:34]}  Bd5 {[%clk 0:02:43]} 7. e3 {[%clk 0:02:33]}  Bxf3 {[%clk 0:02:43]} 8. gxf3 {[%clk 0:02:33]}  Nf6 {[%clk 0:02:20]} 9. Bb5 {[%clk 0:02:29]}  Qd6 {[%clk 0:02:07]} 10. Nc3 {[%clk 0:02:12]}  e6 {[%clk 0:02:07]} 11. e4 {[%clk 0:02:05]}  O-O-O {[%clk 0:02:01]} 12. Bxc6 {[%clk 0:01:33]}  Qxc6 {[%clk 0:02:01]} 13. Qxc6 {[%clk 0:01:32]}  bxc6 {[%clk 0:02:01]} 14. Be3 {[%clk 0:01:31]}  Bb4 {[%clk 0:01:43]} 15. Rc1 {[%clk 0:01:31]}  Kb7 {[%clk 0:01:23]} 16. Ke2 {[%clk 0:01:30]}  Nd7 {[%clk 0:01:15]} 17. a3 {[%clk 0:01:20]}  Bxc3 {[%clk 0:01:14]} 18. Rxc3 {[%clk 0:01:19]}  Nb8 {[%clk 0:01:13]} 19. Rg1 {[%clk 0:01:18]}  g6 {[%clk 0:01:12]} 20. h4 {[%clk 0:01:18]}  h6 {[%clk 0:01:04]} 21. Rc5 {[%clk 0:01:12]}  Kb6 {[%clk 0:00:33]} 22. Rgc1 {[%clk 0:01:10]}  Rd6 {[%clk 0:00:31]} 23. d5 {[%clk 0:01:02]}  Kb7 {[%clk 0:00:19]} 24. dxc6+ {[%clk 0:01:02]}  Rxc6 {[%clk 0:00:19]} 25. Rb5+ {[%clk 0:01:02]}  Kc8 {[%clk 0:00:17]} 26. Rxb8+ {[%clk 0:01:02]}  Kxb8 {[%clk 0:00:15]} 27. Rxc6 {[%clk 0:01:01]} 1-0


[Site "https://www.chess.com"]